[Event "Titled Tuesday Blitz February 22 Early 2022"]
[White "Kalajzic, Ivan"]
[Black "Goltsev, Dmitry"]
[WhiteFideId "14506378"]
[BlackFideId "24176710"]
[WhiteElo "2163"]
[BlackElo "2273"]
[Result "0-1"]
[Round "01"]
[TimeControl "180+1"]
[Date "2022.02.22"]
[WhiteClock "0:00:20"]
[BlackClock "0:01:06"]

1. b3 {[%clk 0:03:00]}  b6 {[%clk 0:03:00]} 2. Bb2 {[%clk 0:03:00]}  Bb7 {[%clk 0:03:01]} 3. e3 {[%clk 0:03:00]}  Nf6 {[%clk 0:02:59]} 4. Nf3 {[%clk 0:03:00]}  e6 {[%clk 0:02:59]} 5. c4 {[%clk 0:03:01]}  c5 {[%clk 0:02:59]} 6. Nc3 {[%clk 0:03:01]}  Nc6 {[%clk 0:02:59]} 7. Be2 {[%clk 0:03:01]}  Be7 {[%clk 0:02:59]} 8. O-O {[%clk 0:03:01]}  O-O {[%clk 0:03:00]} 9. d4 {[%clk 0:03:02]}  d5 {[%clk 0:03:00]} 10. cxd5 {[%clk 0:03:01]}  exd5 {[%clk 0:02:59]} 11. dxc5 {[%clk 0:03:02]}  bxc5 {[%clk 0:02:59]} 12. Na4 {[%clk 0:03:02]}  Bd6 {[%clk 0:02:55]} 13. Rc1 {[%clk 0:03:02]}  Ne4 {[%clk 0:02:38]} 14. g3 {[%clk 0:02:34]}  Ne7 {[%clk 0:02:30]} 15. Nd2 {[%clk 0:02:30]}  Rc8 {[%clk 0:02:23]} 16. Nxe4 {[%clk 0:02:28]}  dxe4 {[%clk 0:02:23]} 17. Bc4 {[%clk 0:02:26]}  Qd7 {[%clk 0:02:21]} 18. Be5 {[%clk 0:02:22]}  Rfd8 {[%clk 0:02:20]} 19. Bxd6 {[%clk 0:02:02]}  Qxd6 {[%clk 0:02:20]} 20. Qxd6 {[%clk 0:02:03]}  Rxd6 {[%clk 0:02:21]} 21. Rfd1 {[%clk 0:02:02]}  Rxd1+ {[%clk 0:02:10]} 22. Rxd1 {[%clk 0:02:01]}  Kf8 {[%clk 0:02:06]} 23. Rd7 {[%clk 0:01:59]}  Bc6 {[%clk 0:02:02]} 24. Rxa7 {[%clk 0:01:58]}  Be8 {[%clk 0:02:00]} 25. Ra5 {[%clk 0:01:52]}  Rd8 {[%clk 0:01:49]} 26. Rxc5 {[%clk 0:01:48]}  Rd2 {[%clk 0:01:48]} 27. b4 {[%clk 0:01:46]}  Bxa4 {[%clk 0:01:48]} 28. b5 {[%clk 0:01:43]}  Rb2 {[%clk 0:01:45]} 29. Kg2 {[%clk 0:01:03]}  g6 {[%clk 0:01:41]} 30. g4 {[%clk 0:01:01]}  f5 {[%clk 0:01:32]} 31. gxf5 {[%clk 0:00:59]}  Nxf5 {[%clk 0:01:33]} 32. Rc8+ {[%clk 0:00:51]}  Ke7 {[%clk 0:01:32]} 33. Rc7+ {[%clk 0:00:51]}  Kf6 {[%clk 0:01:25]} 34. Kf1 {[%clk 0:00:30]}  Bxb5 {[%clk 0:01:21]} 35. Bxb5 {[%clk 0:00:28]}  Rxb5 {[%clk 0:01:22]} 36. Rxh7 {[%clk 0:00:28]}  Ra5 {[%clk 0:01:22]} 37. h4 {[%clk 0:00:27]}  Rxa2 {[%clk 0:01:21]} 38. h5 {[%clk 0:00:27]}  Ra1+ {[%clk 0:01:17]} 39. Kg2 {[%clk 0:00:25]}  Ra2 {[%clk 0:01:18]} 40. h6 {[%clk 0:00:22]}  Nxe3+ {[%clk 0:01:16]} 41. Kg3 {[%clk 0:00:22]}  Nf5+ {[%clk 0:01:16]} 42. Kf4 {[%clk 0:00:22]}  Rxf2+ {[%clk 0:01:14]} 43. Kxe4 {[%clk 0:00:22]}  Rh2 {[%clk 0:01:14]} 44. Ra7 {[%clk 0:00:20]}  Rxh6 {[%clk 0:01:14]} 45. Kf4 {[%clk 0:00:21]}  Rh4+ {[%clk 0:01:13]} 46. Kf3 {[%clk 0:00:21]}  Rd4 {[%clk 0:01:14]} 47. Kg2 {[%clk 0:00:21]}  Kg5 {[%clk 0:01:14]} 48. Kh3 {[%clk 0:00:21]}  Rd3+ {[%clk 0:01:14]} 49. Kg2 {[%clk 0:00:21]}  Kg4 {[%clk 0:01:14]} 50. Ra4+ {[%clk 0:00:21]}  Nd4 {[%clk 0:01:14]} 51. Kh2 {[%clk 0:00:20]}  g5 {[%clk 0:01:13]} 52. Kh1 {[%clk 0:00:19]}  Rd2 {[%clk 0:01:13]} 53. Kg1 {[%clk 0:00:19]}  Kg3 {[%clk 0:01:10]} 54. Ra3+ {[%clk 0:00:19]}  Nf3+ {[%clk 0:01:06]} 55. Kf1 {[%clk 0:00:20]}  Rf2# {[%clk 0:01:06]} 0-1


[Site "https://www.chess.com"]

[Event "Titled Tuesday Blitz February 22 Early 2022"]
[White "Karavaeva, Olga"]
[Black "Mustafayev, Farid"]
[WhiteFideId "4124111"]
[BlackFideId "13408771"]
[WhiteElo "2105"]
[BlackElo "2129"]
[Result "1-0"]
[Round "01"]
[TimeControl "180+1"]
[Date "2022.02.22"]
[WhiteClock "0:00:41"]
[BlackClock "0:00:20"]

1. c4 {[%clk 0:03:00]}  Nf6 {[%clk 0:02:59]} 2. Nc3 {[%clk 0:03:00]}  d6 {[%clk 0:02:59]} 3. g3 {[%clk 0:03:00]}  g6 {[%clk 0:02:59]} 4. Bg2 {[%clk 0:03:00]}  Bg7 {[%clk 0:02:58]} 5. Nf3 {[%clk 0:02:59]}  O-O {[%clk 0:02:59]} 6. O-O {[%clk 0:02:58]}  c5 {[%clk 0:02:59]} 7. d4 {[%clk 0:02:57]}  cxd4 {[%clk 0:02:58]} 8. Nxd4 {[%clk 0:02:58]}  a6 {[%clk 0:02:57]} 9. b3 {[%clk 0:02:58]}  e5 {[%clk 0:02:54]} 10. Nf3 {[%clk 0:02:56]}  Nc6 {[%clk 0:02:50]} 11. Bb2 {[%clk 0:02:56]}  h6 {[%clk 0:02:42]} 12. h3 {[%clk 0:02:49]}  Be6 {[%clk 0:02:41]} 13. Kh2 {[%clk 0:02:49]}  Rb8 {[%clk 0:02:33]} 14. Qd2 {[%clk 0:02:44]}  b5 {[%clk 0:02:31]} 15. cxb5 {[%clk 0:02:44]}  axb5 {[%clk 0:02:31]} 16. Rac1 {[%clk 0:02:35]}  Qd7 {[%clk 0:02:25]} 17. Rfd1 {[%clk 0:02:33]}  Rfd8 {[%clk 0:02:20]} 18. e3 {[%clk 0:02:18]}  d5 {[%clk 0:02:12]} 19. Ne2 {[%clk 0:02:17]}  Ne4 {[%clk 0:02:11]} 20. Qe1 {[%clk 0:02:18]}  Ra8 {[%clk 0:02:05]} 21. Ra1 {[%clk 0:02:13]}  f5 {[%clk 0:01:58]} 22. Nc3 {[%clk 0:02:09]}  Qb7 {[%clk 0:01:35]} 23. Nh4 {[%clk 0:01:59]}  Kh7 {[%clk 0:01:33]} 24. Nxe4 {[%clk 0:01:52]}  dxe4 {[%clk 0:01:30]} 25. Bf1 {[%clk 0:01:44]}  g5 {[%clk 0:01:22]} 26. Ng2 {[%clk 0:01:44]}  Rxd1 {[%clk 0:01:17]} 27. Qxd1 {[%clk 0:01:44]}  Rd8 {[%clk 0:01:17]} 28. Qe1 {[%clk 0:01:37]}  Ra8 {[%clk 0:01:05]} 29. Be2 {[%clk 0:01:36]}  Ne7 {[%clk 0:00:58]} 30. Qb4 {[%clk 0:01:33]}  Rb8 {[%clk 0:00:53]} 31. Qd6 {[%clk 0:01:28]}  Bf7 {[%clk 0:00:28]} 32. Bxe5 {[%clk 0:01:23]}  Rc8 {[%clk 0:00:26]} 33. Bxg7 {[%clk 0:01:21]}  Kxg7 {[%clk 0:00:27]} 34. h4 {[%clk 0:01:15]}  b4 {[%clk 0:00:22]} 35. Rd1 {[%clk 0:01:07]}  Ng6 {[%clk 0:00:20]} 36. Bh5 {[%clk 0:01:04]}  Rc2 {[%clk 0:00:20]} 37. Bxg6 {[%clk 0:00:59]}  Bxg6 {[%clk 0:00:21]} 38. Qe5+ {[%clk 0:00:57]}  Kh7 {[%clk 0:00:21]} 39. Qe6 {[%clk 0:00:42]}  Qf7 {[%clk 0:00:20]} 40. Rd7 {[%clk 0:00:41]} 1-0


[Site "https://www.chess.com"]

[Event "Titled Tuesday Blitz February 22 Early 2022"]
[White "Kazancev, Valerij M"]
[Black "Van Foreest, Jorden"]
[WhiteFideId "4179609"]
[BlackFideId "1039784"]
[WhiteElo "2462"]
[BlackElo "2609"]
[Result "0-1"]
[Round "01"]
[TimeControl "180+1"]
[Date "2022.02.22"]
[WhiteClock "0:01:12"]
[BlackClock "0:02:15"]

1. c4 {[%clk 0:02:51]}  Nf6 {[%clk 0:02:59]} 2. g3 {[%clk 0:02:51]}  e5 {[%clk 0:02:59]} 3. Bg2 {[%clk 0:02:51]}  c6 {[%clk 0:03:00]} 4. Nf3 {[%clk 0:02:50]}  e4 {[%clk 0:03:00]} 5. Nd4 {[%clk 0:02:51]}  Bc5 {[%clk 0:03:00]} 6. Nb3 {[%clk 0:02:48]}  Bb6 {[%clk 0:02:59]} 7. d4 {[%clk 0:02:45]}  d5 {[%clk 0:02:59]} 8. cxd5 {[%clk 0:02:42]}  cxd5 {[%clk 0:03:00]} 9. Nc3 {[%clk 0:02:41]}  h6 {[%clk 0:02:59]} 10. h3 {[%clk 0:02:42]}  Nc6 {[%clk 0:02:59]} 11. Be3 {[%clk 0:02:38]}  O-O {[%clk 0:02:56]} 12. Rc1 {[%clk 0:02:38]}  Re8 {[%clk 0:02:56]} 13. O-O {[%clk 0:02:35]}  a6 {[%clk 0:02:55]} 14. Na4 {[%clk 0:02:35]}  Bc7 {[%clk 0:02:55]} 15. a3 {[%clk 0:02:31]}  Bd6 {[%clk 0:02:54]} 16. Qd2 {[%clk 0:02:28]}  Ne7 {[%clk 0:02:53]} 17. Bf4 {[%clk 0:02:15]}  Bxf4 {[%clk 0:02:53]} 18. Qxf4 {[%clk 0:02:16]}  Ng6 {[%clk 0:02:50]} 19. Qc7 {[%clk 0:02:16]}  Be6 {[%clk 0:02:46]} 20. Qxd8 {[%clk 0:02:13]}  Rexd8 {[%clk 0:02:45]} 21. Nbc5 {[%clk 0:02:14]}  Rab8 {[%clk 0:02:44]} 22. Nb6 {[%clk 0:02:12]}  Rd6 {[%clk 0:02:43]} 23. Nba4 {[%clk 0:01:59]}  Bc8 {[%clk 0:02:42]} 24. b4 {[%clk 0:01:58]}  b6 {[%clk 0:02:42]} 25. Nb3 {[%clk 0:01:54]}  Bd7 {[%clk 0:02:42]} 26. Nc3 {[%clk 0:01:54]}  h5 {[%clk 0:02:42]} 27. e3 {[%clk 0:01:54]}  h4 {[%clk 0:02:42]} 28. g4 {[%clk 0:01:53]}  Nh7 {[%clk 0:02:38]} 29. Rc2 {[%clk 0:01:52]}  Ng5 {[%clk 0:02:37]} 30. Rfc1 {[%clk 0:01:51]}  f5 {[%clk 0:02:38]} 31. gxf5 {[%clk 0:01:45]}  Bxf5 {[%clk 0:02:39]} 32. b5 {[%clk 0:01:44]}  axb5 {[%clk 0:02:31]} 33. Nxb5 {[%clk 0:01:44]}  Rf6 {[%clk 0:02:31]} 34. Kh2 {[%clk 0:01:43]}  Rbf8 {[%clk 0:02:27]} 35. Nc7 {[%clk 0:01:38]}  Ne7 {[%clk 0:02:25]} 36. a4 {[%clk 0:01:19]}  Bd7 {[%clk 0:02:17]} 37. Nb5 {[%clk 0:01:15]}  Rxf2 {[%clk 0:02:16]} 38. Rxf2 {[%clk 0:01:14]}  Rxf2 {[%clk 0:02:16]} 39. Kg1 {[%clk 0:01:13]}  Rb2 {[%clk 0:02:16]} 40. Rc3 {[%clk 0:01:12]}  Bxh3 {[%clk 0:02:15]} 0-1


[Site "https://www.chess.com"]

[Event "Titled Tuesday Blitz February 22 Early 2022"]
[White "Kim, Sergey"]
[Black "Shevtchenko, Olesya"]
[WhiteFideId "13700570"]
[BlackFideId "24131890"]
[WhiteElo "2620"]
[BlackElo "2003"]
[Result "1-0"]
[Round "01"]
[TimeControl "180+1"]
[Date "2022.02.22"]
[WhiteClock "0:01:25"]
[BlackClock "0:01:36"]

1. d4 {[%clk 0:02:59]}  d5 {[%clk 0:02:59]} 2. c4 {[%clk 0:02:59]}  e6 {[%clk 0:02:59]} 3. Nc3 {[%clk 0:02:59]}  Nf6 {[%clk 0:02:58]} 4. Nf3 {[%clk 0:02:59]}  c5 {[%clk 0:02:58]} 5. e3 {[%clk 0:02:58]}  Nc6 {[%clk 0:02:57]} 6. a3 {[%clk 0:02:57]}  cxd4 {[%clk 0:02:55]} 7. exd4 {[%clk 0:02:57]}  g6 {[%clk 0:02:56]} 8. c5 {[%clk 0:02:54]}  Ne4 {[%clk 0:02:53]} 9. Bb5 {[%clk 0:02:45]}  Bg7 {[%clk 0:02:52]} 10. O-O {[%clk 0:02:41]}  Bd7 {[%clk 0:02:52]} 11. Ne2 {[%clk 0:02:37]}  O-O {[%clk 0:02:48]} 12. b4 {[%clk 0:02:36]}  b6 {[%clk 0:02:43]} 13. Qa4 {[%clk 0:02:29]}  Rc8 {[%clk 0:02:33]} 14. Bxc6 {[%clk 0:02:28]}  Bxc6 {[%clk 0:02:33]} 15. b5 {[%clk 0:02:29]}  Be8 {[%clk 0:02:29]} 16. c6 {[%clk 0:02:29]}  Ra8 {[%clk 0:02:13]} 17. Bf4 {[%clk 0:02:22]}  a6 {[%clk 0:02:11]} 18. bxa6 {[%clk 0:02:16]}  Qc8 {[%clk 0:02:11]} 19. Rfc1 {[%clk 0:02:11]}  Rxa6 {[%clk 0:02:11]} 20. Qb5 {[%clk 0:02:11]}  f5 {[%clk 0:01:57]} 21. h4 {[%clk 0:02:09]}  Rf7 {[%clk 0:01:56]} 22. a4 {[%clk 0:02:00]}  Rfa7 {[%clk 0:01:56]} 23. Ng3 {[%clk 0:01:49]}  Bf8 {[%clk 0:01:53]} 24. Nxe4 {[%clk 0:01:46]}  fxe4 {[%clk 0:01:54]} 25. Ne5 {[%clk 0:01:46]}  Bd6 {[%clk 0:01:52]} 26. Bg3 {[%clk 0:01:39]}  Rc7 {[%clk 0:01:43]} 27. Rc3 {[%clk 0:01:34]}  Bxe5 {[%clk 0:01:42]} 28. Bxe5 {[%clk 0:01:33]}  Rxc6 {[%clk 0:01:43]} 29. Rxc6 {[%clk 0:01:32]}  Bxc6 {[%clk 0:01:43]} 30. Qb4 {[%clk 0:01:32]}  Qd7 {[%clk 0:01:38]} 31. a5 {[%clk 0:01:28]}  bxa5 {[%clk 0:01:38]} 32. Qb8+ {[%clk 0:01:27]}  Qe8 {[%clk 0:01:39]} 33. Qc7 {[%clk 0:01:26]}  a4 {[%clk 0:01:36]} 34. Qg7# {[%clk 0:01:25]} 1-0


[Site "https://www.chess.com"]

[Event "Titled Tuesday Blitz February 22 Early 2022"]
[White "Kirillov, Dmitry"]
[Black "Lenderman, Aleksandr"]
[WhiteFideId "34180572"]
[BlackFideId "2021285"]
[WhiteElo "2076"]
[BlackElo "2651"]
[Result "0-1"]
[Round "01"]
[TimeControl "180+1"]
[Date "2022.02.22"]
[WhiteClock "0:00:32"]
[BlackClock "0:01:22"]

1. d4 {[%clk 0:02:59]}  d5 {[%clk 0:02:57]} 2. c4 {[%clk 0:02:59]}  e6 {[%clk 0:02:57]} 3. Nf3 {[%clk 0:02:59]}  a6 {[%clk 0:02:56]} 4. e3 {[%clk 0:02:49]}  Nf6 {[%clk 0:02:52]} 5. Nc3 {[%clk 0:02:47]}  dxc4 {[%clk 0:02:48]} 6. Bxc4 {[%clk 0:02:48]}  b5 {[%clk 0:02:48]} 7. Bd3 {[%clk 0:02:48]}  Bb7 {[%clk 0:02:48]} 8. O-O {[%clk 0:02:47]}  Nbd7 {[%clk 0:02:48]} 9. e4 {[%clk 0:02:20]}  b4 {[%clk 0:02:48]} 10. e5 {[%clk 0:02:01]}  bxc3 {[%clk 0:02:45]} 11. exf6 {[%clk 0:02:00]}  cxb2 {[%clk 0:02:40]} 12. fxg7 {[%clk 0:02:00]}  Bxg7 {[%clk 0:02:39]} 13. Bxb2 {[%clk 0:02:00]}  O-O {[%clk 0:02:39]} 14. Rc1 {[%clk 0:01:47]}  Bd5 {[%clk 0:02:35]} 15. Qc2 {[%clk 0:01:44]}  Bxf3 {[%clk 0:02:31]} 16. Bxh7+ {[%clk 0:01:44]}  Kh8 {[%clk 0:02:31]} 17. gxf3 {[%clk 0:01:29]}  Rb8 {[%clk 0:02:19]} 18. Be4 {[%clk 0:01:05]}  Rb5 {[%clk 0:02:13]} 19. Bc3 {[%clk 0:00:51]}  Qh4 {[%clk 0:02:08]} 20. d5 {[%clk 0:00:47]}  Rg8 {[%clk 0:01:55]} 21. Kh1 {[%clk 0:00:41]}  exd5 {[%clk 0:01:55]} 22. Bf5 {[%clk 0:00:38]}  d4 {[%clk 0:01:51]} 23. Bxd7 {[%clk 0:00:33]}  Rh5 {[%clk 0:01:22]} 24. h3 {[%clk 0:00:32]}  Be5 {[%clk 0:01:22]} 0-1


[Site "https://www.chess.com"]

[Event "Titled Tuesday Blitz February 22 Early 2022"]
[White "Klukin, Kirill"]
[Black "Peatman, Carter"]
[WhiteFideId "24199273"]
[BlackFideId "2096480"]
[WhiteElo "2324"]
[BlackElo "2340"]
[Result "1-0"]
[Round "01"]
[TimeControl "180+1"]
[Date "2022.02.22"]
[WhiteClock "0:00:06"]
[BlackClock "0:00:16"]

1. e4 {[%clk 0:02:57]}  c5 {[%clk 0:02:59]} 2. Nf3 {[%clk 0:02:56]}  Nc6 {[%clk 0:03:00]} 3. c3 {[%clk 0:02:56]}  g6 {[%clk 0:02:59]} 4. d4 {[%clk 0:02:55]}  cxd4 {[%clk 0:03:00]} 5. cxd4 {[%clk 0:02:56]}  Bg7 {[%clk 0:02:59]} 6. Nc3 {[%clk 0:02:52]}  d6 {[%clk 0:02:59]} 7. Be3 {[%clk 0:02:51]}  Nf6 {[%clk 0:02:56]} 8. h3 {[%clk 0:02:49]}  O-O {[%clk 0:02:56]} 9. Be2 {[%clk 0:02:48]}  Bd7 {[%clk 0:02:54]} 10. O-O {[%clk 0:02:48]}  Re8 {[%clk 0:02:54]} 11. Qd2 {[%clk 0:02:49]}  Qa5 {[%clk 0:02:42]} 12. Rfd1 {[%clk 0:02:45]}  Rad8 {[%clk 0:02:42]} 13. a3 {[%clk 0:02:42]}  Kh8 {[%clk 0:02:32]} 14. b4 {[%clk 0:02:32]}  Qc7 {[%clk 0:02:33]} 15. Rac1 {[%clk 0:02:32]}  Qb8 {[%clk 0:02:33]} 16. Qa2 {[%clk 0:02:03]}  Kg8 {[%clk 0:02:31]} 17. b5 {[%clk 0:01:56]}  Na5 {[%clk 0:02:28]} 18. e5 {[%clk 0:01:56]}  dxe5 {[%clk 0:02:16]} 19. dxe5 {[%clk 0:01:51]}  Be6 {[%clk 0:02:14]} 20. Qb1 {[%clk 0:01:46]}  Nd5 {[%clk 0:02:09]} 21. Nxd5 {[%clk 0:01:42]}  Bxd5 {[%clk 0:02:10]} 22. Qb4 {[%clk 0:01:41]}  b6 {[%clk 0:01:53]} 23. Nd4 {[%clk 0:01:09]}  Bxe5 {[%clk 0:01:50]} 24. Nc6 {[%clk 0:01:09]}  Nxc6 {[%clk 0:01:39]} 25. bxc6 {[%clk 0:01:10]}  Qc7 {[%clk 0:01:29]} 26. a4 {[%clk 0:00:59]}  Rd6 {[%clk 0:01:26]} 27. Bb5 {[%clk 0:00:54]}  Red8 {[%clk 0:01:23]} 28. Re1 {[%clk 0:00:53]}  Re6 {[%clk 0:01:16]} 29. Bg5 {[%clk 0:00:36]}  Kg7 {[%clk 0:01:12]} 30. Qh4 {[%clk 0:00:34]}  Bf6 {[%clk 0:01:03]} 31. Rxe6 {[%clk 0:00:22]}  Bxe6 {[%clk 0:01:04]} 32. Bxf6+ {[%clk 0:00:16]}  exf6 {[%clk 0:01:05]} 33. Qb4 {[%clk 0:00:13]}  h5 {[%clk 0:01:01]} 34. Qc3 {[%clk 0:00:13]}  Rd5 {[%clk 0:01:00]} 35. Be2 {[%clk 0:00:13]}  Rc5 {[%clk 0:01:00]} 36. Qb2 {[%clk 0:00:13]}  Qxc6 {[%clk 0:00:58]} 37. Rxc5 {[%clk 0:00:13]}  Qxc5 {[%clk 0:00:59]} 38. h4 {[%clk 0:00:11]}  Qd5 {[%clk 0:00:55]} 39. Bf3 {[%clk 0:00:09]}  Qc4 {[%clk 0:00:50]} 40. Qa3 {[%clk 0:00:06]}  Qxh4 {[%clk 0:00:48]} 41. a5 {[%clk 0:00:07]}  b5 {[%clk 0:00:47]} 42. Qc5 {[%clk 0:00:07]}  b4 {[%clk 0:00:38]} 43. Qxa7 {[%clk 0:00:07]}  b3 {[%clk 0:00:38]} 44. Qb6 {[%clk 0:00:08]}  Qa4 {[%clk 0:00:37]} 45. a6 {[%clk 0:00:08]}  Qa1+ {[%clk 0:00:37]} 46. Kh2 {[%clk 0:00:08]}  Bf5 {[%clk 0:00:29]} 47. a7 {[%clk 0:00:07]}  b2 {[%clk 0:00:30]} 48. Qxb2 {[%clk 0:00:06]}  Qxa7 {[%clk 0:00:28]} 49. g3 {[%clk 0:00:07]}  Qc5 {[%clk 0:00:27]} 50. Kg2 {[%clk 0:00:07]}  Qc4 {[%clk 0:00:24]} 51. Qb7 {[%clk 0:00:05]}  Be6 {[%clk 0:00:22]} 52. Bc6 {[%clk 0:00:05]}  Qd4 {[%clk 0:00:18]} 53. Bf3 {[%clk 0:00:05]}  Qe5 {[%clk 0:00:18]} 54. Kg1 {[%clk 0:00:06]}  Qf5 {[%clk 0:00:18]} 55. Kg2 {[%clk 0:00:06]}  Qh3+ {[%clk 0:00:18]} 56. Kg1 {[%clk 0:00:06]}  h4 {[%clk 0:00:18]} 57. Bg2 {[%clk 0:00:07]}  Qf5 {[%clk 0:00:18]} 58. gxh4 {[%clk 0:00:07]}  Qe5 {[%clk 0:00:17]} 59. Qb4 {[%clk 0:00:06]}  Qe1+ {[%clk 0:00:17]} 60. Qxe1 {[%clk 0:00:06]}  Bf5 {[%clk 0:00:16]} 61. Qd2 {[%clk 0:00:06]} 1-0


[Site "https://www.chess.com"]

[Event "Titled Tuesday Blitz February 22 Early 2022"]
[White "Kobalia, Mikhail"]
[Black "Jiang, Brian"]
[WhiteFideId "4119150"]
[BlackFideId "2627922"]
[WhiteElo "2667"]
[BlackElo "2414"]
[Result "1-0"]
[Round "01"]
[TimeControl "180+1"]
[Date "2022.02.22"]
[WhiteClock "0:00:06"]
[BlackClock "0:00:07"]

1. e4 {[%clk 0:02:58]}  c5 {[%clk 0:02:59]} 2. Nf3 {[%clk 0:02:57]}  Nc6 {[%clk 0:02:59]} 3. Bb5 {[%clk 0:02:52]}  e6 {[%clk 0:02:59]} 4. Bxc6 {[%clk 0:02:45]}  bxc6 {[%clk 0:03:00]} 5. O-O {[%clk 0:02:44]}  Ne7 {[%clk 0:02:59]} 6. d3 {[%clk 0:02:39]}  Ng6 {[%clk 0:02:59]} 7. e5 {[%clk 0:02:28]}  Be7 {[%clk 0:02:58]} 8. Nbd2 {[%clk 0:02:17]}  f6 {[%clk 0:02:57]} 9. Nc4 {[%clk 0:02:16]}  O-O {[%clk 0:02:56]} 10. Re1 {[%clk 0:02:16]}  Ba6 {[%clk 0:02:28]} 11. exf6 {[%clk 0:02:04]}  Bxf6 {[%clk 0:02:22]} 12. Rb1 {[%clk 0:02:02]}  Bxc4 {[%clk 0:02:13]} 13. dxc4 {[%clk 0:01:51]}  e5 {[%clk 0:02:11]} 14. Qd6 {[%clk 0:01:46]}  Be7 {[%clk 0:01:48]} 15. Qd3 {[%clk 0:01:43]}  d6 {[%clk 0:01:47]} 16. Bd2 {[%clk 0:01:38]}  Qc8 {[%clk 0:01:39]} 17. a3 {[%clk 0:01:31]}  Qg4 {[%clk 0:01:38]} 18. Re4 {[%clk 0:01:30]}  Nf4 {[%clk 0:01:33]} 19. Bxf4 {[%clk 0:01:29]}  Rxf4 {[%clk 0:01:33]} 20. Rxf4 {[%clk 0:01:27]}  Qxf4 {[%clk 0:01:34]} 21. Re1 {[%clk 0:01:26]}  Rf8 {[%clk 0:01:31]} 22. b4 {[%clk 0:01:23]}  cxb4 {[%clk 0:01:28]} 23. axb4 {[%clk 0:01:22]}  Rb8 {[%clk 0:01:24]} 24. c3 {[%clk 0:01:22]}  Kh8 {[%clk 0:01:13]} 25. h3 {[%clk 0:01:21]}  Rd8 {[%clk 0:01:06]} 26. Re4 {[%clk 0:01:13]}  Qf7 {[%clk 0:01:02]} 27. Kh2 {[%clk 0:01:09]}  Bf6 {[%clk 0:01:00]} 28. Re1 {[%clk 0:01:07]}  Qc7 {[%clk 0:00:57]} 29. Qf5 {[%clk 0:01:03]}  e4 {[%clk 0:00:53]} 30. Nd4 {[%clk 0:00:40]}  d5+ {[%clk 0:00:52]} 31. Kg1 {[%clk 0:00:39]}  Bxd4 {[%clk 0:00:47]} 32. cxd4 {[%clk 0:00:38]}  Qb6 {[%clk 0:00:44]} 33. b5 {[%clk 0:00:22]}  cxb5 {[%clk 0:00:40]} 34. cxd5 {[%clk 0:00:22]}  b4 {[%clk 0:00:38]} 35. Rxe4 {[%clk 0:00:18]}  b3 {[%clk 0:00:38]} 36. Qf7 {[%clk 0:00:17]}  h6 {[%clk 0:00:35]} 37. Re7 {[%clk 0:00:12]}  Qxd4 {[%clk 0:00:29]} 38. Rb7 {[%clk 0:00:10]}  b2 {[%clk 0:00:26]} 39. d6 {[%clk 0:00:09]}  Rg8 {[%clk 0:00:20]} 40. Qb3 {[%clk 0:00:06]}  Qxd6 {[%clk 0:00:16]} 41. Qxb2 {[%clk 0:00:06]}  a5 {[%clk 0:00:13]} 42. g3 {[%clk 0:00:06]}  Qg6 {[%clk 0:00:10]} 43. Rb6 {[%clk 0:00:05]}  Qh5 {[%clk 0:00:07]} 44. Rb5 {[%clk 0:00:05]}  Qg6 {[%clk 0:00:07]} 45. Kg2 {[%clk 0:00:05]}  Re8 {[%clk 0:00:06]} 46. Rxa5 {[%clk 0:00:04]}  Qe4+ {[%clk 0:00:06]} 47. Kh2 {[%clk 0:00:03]}  Qe2 {[%clk 0:00:04]} 48. Ra2 {[%clk 0:00:03]}  Qxb2 {[%clk 0:00:04]} 49. Rxb2 {[%clk 0:00:03]}  Rf8 {[%clk 0:00:04]} 50. Kg2 {[%clk 0:00:04]}  Kh7 {[%clk 0:00:05]} 51. g4 {[%clk 0:00:04]}  Rf6 {[%clk 0:00:05]} 52. Kg3 {[%clk 0:00:04]}  Ra6 {[%clk 0:00:06]} 53. h4 {[%clk 0:00:05]}  Ra5 {[%clk 0:00:06]} 54. f3 {[%clk 0:00:05]}  Ra4 {[%clk 0:00:06]} 55. h5 {[%clk 0:00:05]}  Kg8 {[%clk 0:00:06]} 56. Rb7 {[%clk 0:00:05]}  Kf8 {[%clk 0:00:06]} 57. f4 {[%clk 0:00:05]}  Ra5 {[%clk 0:00:06]} 58. Kh4 {[%clk 0:00:05]}  Rc5 {[%clk 0:00:05]} 59. g5 {[%clk 0:00:05]}  hxg5+ {[%clk 0:00:05]} 60. fxg5 {[%clk 0:00:06]}  Rc4+ {[%clk 0:00:05]} 61. Kg3 {[%clk 0:00:06]}  Rc5 {[%clk 0:00:06]} 62. Kg4 {[%clk 0:00:06]}  Ra5 {[%clk 0:00:05]} 63. Rc7 {[%clk 0:00:06]}  Kg8 {[%clk 0:00:05]} 64. Rc8+ {[%clk 0:00:05]}  Kf7 {[%clk 0:00:06]} 65. g6+ {[%clk 0:00:06]}  Kf6 {[%clk 0:00:06]} 66. Rf8+ {[%clk 0:00:05]}  Ke6 {[%clk 0:00:05]} 67. h6 {[%clk 0:00:05]}  Ra4+ {[%clk 0:00:04]} 68. Kh5 {[%clk 0:00:05]}  Ra5+ {[%clk 0:00:05]} 69. Kh4 {[%clk 0:00:05]}  Ra4+ {[%clk 0:00:05]} 70. Kg3 {[%clk 0:00:05]}  Ra3+ {[%clk 0:00:06]} 71. Kf2 {[%clk 0:00:05]}  Ra2+ {[%clk 0:00:06]} 72. Ke3 {[%clk 0:00:06]}  gxh6 {[%clk 0:00:06]} 73. g7 {[%clk 0:00:05]}  Ra3+ {[%clk 0:00:07]} 74. Kd4 {[%clk 0:00:05]}  Ra4+ {[%clk 0:00:07]} 75. Kc5 {[%clk 0:00:06]}  Rg4 {[%clk 0:00:06]} 76. g8=Q+ {[%clk 0:00:06]}  Rxg8 {[%clk 0:00:07]} 77. Rxg8 {[%clk 0:00:06]} 1-0


[Site "https://www.chess.com"]